Cogmind - Beta 10.2 @@@ ROGUE MODE // 2022.02.06 @ 23:18:53 Player: Zach Result: Destroyed by Y-45 Defender with Beam Rifle Performance ------------- Evolutions (1) 500 Regions Visited (2) 400 Robots Destroyed (35) 175 Value Destroyed (949) 949 Prototype IDs (8) 160 Alien Tech Used (0) 0 Bonus (0) 0 TOTAL SCORE: 2184 Bonus ------- None Cogmind --------- Core Integrity 0/400 Matter 300/300 Energy 100/100 System Corruption 0% Temperature Cool (9) Movement Core (50) Location -9/Materials Parts ------- > --- POWER (2) -------- (None) > --- PROPULSION (2) --- (None) > --- UTILITY (2) ------ Visual Processing Unit > --- WEAPON (3) ------- Heavy Flail > --- INVENTORY (4) ---- Ion Engine Hardened Light Armor Plating Peak State ------------ > --- POWER ------------ Ion Engine Improved Ion Engine > --- PROPULSION ------- Aluminum Leg Aluminum Leg > --- UTILITY ---------- Visual Processing Unit Hacking Suite > --- WEAPON ----------- EM Shotgun Improved EM Shotgun Improved Medium Laser > --- INVENTORY -------- Hardened Light Armor Plating Particle Gun Heavy Flail [Rating: 18] Favorites ----------- Power Ion Engine Engine Ion Engine Power Core Light Nuclear Core Propulsion Aluminum Leg Leg Aluminum Leg Utility Large Storage Unit Storage Large Storage Unit Processor Visual Processing Unit Hackware Hacking Suite Weapon Small Laser Energy Gun Small Laser Ballistic Gun Light Assault Rifle Launcher Grenade Launcher Impact Weapon Hammer Special Melee Weapon Datajack Build | -11 -10 -9 ------- Run | Scr Mat Mat Slots Evolved 2 | . . 2 Power 1 | . . 1 Propulsion . | . . . Utility . | . . . Weapon 1 | . . 1 Parts Attached 47 | 6 23 18 Power 11 | 1 6 4 Engine 10 | 1 5 4 Core 1 | . 1 . Reactor . | . . . Propulsion 7 | 2 5 . Treads . | . . . Leg 7 | 2 5 . Wheel . | . . . Hover . | . . . Flight . | . . . Utility 6 | 1 3 2 Device . | . . . Storage 4 | 1 2 1 Processor 1 | . . 1 Hackware 1 | . 1 . Protection . | . . . Artifact . | . . . Weapon 23 | 2 9 12 Energy Gun 12 | 1 4 7 Energy Cannon . | . . . Ballistic Gun 4 | 1 2 1 Ballistic Cannon . | . . . Launcher 2 | . . 2 Special Weapon . | . . . Impact Weapon 4 | . 2 2 Slashing Weapon . | . . . Piercing Weapon . | . . . Special Melee Weapon 1 | . 1 . Unidentified Prototypes 1 | . . 1 Parts Lost 16 | . 4 12 Power 4 | . 1 3 Propulsion 4 | . 2 2 Utility 1 | . . 1 Weapon 7 | . 1 6 Highest Loss Streak 8 | . 4 8 Average Slot Usage (%) 90 | . 92 87 Engine 12 | . 7 18 Core 2 | . 4 . Leg 21 | . 23 17 Storage 17 | . 25 7 Processor 1 | . . 3 Hackware 5 | . 2 10 Energy Gun 19 | . 16 22 Ballistic Gun 4 | . 5 1 Launcher 1 | . . 2 Impact Weapon 3 | . 3 2 Naked Turns . | . . . Heaviest Build 35 | 11 29 35 Greatest Support 20 | 20 20 20 Greatest Overweight (x) 8 | . 8 4 Average Overweight (x) . | . . . Largest Inventory Capacity 10 | 6 10 10 Average Capacity 8 | 5 8 7 Most Carried 10 | 4 10 10 Average Carried 6 | 2 7 5 Final Capacity 10 | 6 10 4 Final Carried 10 | 3 10 2 Class Distribution -------------------- 47% | Mutant 31% | Scavenger-Mutant 12% | Scavenger-Gunner 8% | Scavenger-Skirmisher Dominant Class ---------------- Mutant | -10/Materials Scavenger-Mutant | -9/Materials Resources | -11 -10 -9 ----------- Run | Scr Mat Mat Matter Collected 946 | 254 406 286 Remotely . | . . . Salvage Created 1308 | 99 556 653 Parts 80 | 2 43 35 Haulers Intercepted . | . . . Recyclers Shooed . | . . . Parts Field Recycled . | . . . Retrieved Matter . | . . . Parts Self-Destructed . | . . . Prevented . | . . . Kills | -11 -10 -9 ------- Run | Scr Mat Mat Combat Hostiles Destroyed 25 | . 14 11 Melee 2 | . 1 1 Guns 19 | . 12 7 AOE 2 | . . 2 Classes Destroyed 7 | 1 4 2 Worker 1 | . . 1 Recycler 2 | 1 . 1 Operator 2 | . 2 . Watcher 5 | . 2 3 Swarmer 4 | . 4 . Grunt 17 | . 10 7 Sentry 4 | . . 4 Best Kill Streak 6 | 1 2 6 Combat Bots Only 5 | . 2 5 Max Kills in Single Turn 1 | 1 1 1 Gunslinging . | . . . Exploded 1 | . . 1 Melee 1 | . 1 1 Uniques/NPCs Destroyed . | . . . Combat | -11 -10 -9 -------- Run | Scr Mat Mat Damage Taken 2083 | 2 832 1249 Core 636 | 1 228 407 Absorbed by Shields . | . . . Core Remaining (%) 53 | 99 8 . Volleys Fired 115 | 6 66 43 Largest 3 | 2 2 3 Hottest 166 | 60 90 166 Shots Fired 204 | 12 109 83 Gun 201 | 12 109 80 Cannon . | . . . Launcher 3 | . . 3 Special . | . . . Kinetic 38 | 6 27 5 Thermal 123 | 6 71 46 Explosive 3 | . . 3 Electromagnetic 40 | . 11 29 Robot Hit Streak 8 | 7 8 7 Robot Miss Streak 7 | 1 7 6 Penetration Max . | . . . Secondary Targets 1 | . 1 . Max Gunslinging Chain 1 | . 1 . Shots Hit Robots 139 | 10 70 59 Core Hits 59 | 3 31 25 Critical Hits . | . . . Critical Kills . | . . . Critical Parts Destroyed . | . . . Melee Attacks 25 | . 16 9 Impact 24 | . 15 9 Slashing . | . . . Piercing . | . . . Sneak Attacks 1 | . 1 . Combat Hostiles . | . . . Follow-up Attacks . | . . . Damage Inflicted 2091 | 104 860 1127 Guns 1571 | 98 644 829 Cannons . | . . . Explosions 152 | . . 152 Melee 362 | . 216 146 Ramming 6 | 6 . . Kinetic 226 | 45 124 57 Thermal 920 | 53 418 449 Explosive 84 | . . 84 Electromagnetic 493 | . 102 391 Impact 362 | . 216 146 Slashing . | . . . Piercing . | . . . Highest Corruption . | . . . Average Corruption . | . . . Corruption Purged . | . . . Overload Shots . | . . . Overflow Damage 28 | . 10 18 Projectiles . | . . . Explosions 18 | . . 18 Melee 10 | . 10 . Knockbacks 1 | . 1 . Impact 1 | . 1 . Kinetic . | . . . Secondary . | . . . Self-Inflicted Damage 63 | 2 . 61 Shots 2 | . . 2 Rammed 3 | 3 . . Targets Rammed 3 | 3 . . Kicked . | . . . Crushed . | . . . Highest Temperature 478 | 40 126 478 Average Temperature 84 | 19 33 129 Received Heat Transfer 861 | . 381 480 Effects 4 | . . 4 Shutdowns 2 | . . 2 Interference 1 | . . 1 Matter Decay 1 | . . 1 Siege Activations . | . . . Robots Corrupted 1 | . 1 . Combat Hostiles 1 | . 1 . Parts Fried 2 | . 1 1 Impact Corruptions 2 | . 2 . Robots Melted 1 | . . 1 Combat Hostiles 1 | . . 1 Parts Melted 3 | . 2 1 Heat Transferred 2073 | 125 997 951 Parts Sabotaged . | . . . Parts Stolen . | . . . Parts Stripped . | . . . Power Chain Reactions 2 | . . 2 Missiles Intercepted . | . . . Alert | -11 -10 -9 ------- Run | Scr Mat Mat Peak Influence 285 | 5 254 285 Initial 56 | . 3 56 Average 116 | . 114 136 Maximum Alert Level 1 | . 1 1 Low Security (%) 86 | 100 91 79 Level 1 13 | . 8 20 Level 2 . | . . . Level 3 . | . . . Level 4 . | . . . Level 5 . | . . . High Security . | . . . Max Security . | . . . Squads Dispatched 9 | . 7 2 Investigation 7 | . 5 2 Extermination . | . . . Reinforcement 2 | . 2 . Assault . | . . . Garrison . | . . . Intercept . | . . . Construction Impeded . | . . . Haulers Reinforced . | . . . Stealth | -11 -10 -9 --------- Run | Scr Mat Mat Distress Signals 1 | . . 1 Communications Jammed . | . . . Distress Signals . | . . . Times Spotted 47 | . 27 20 Peak Tracking Total 5 | . 4 5 Tactical Retreats 4 | . 3 1 Traps | -11 -10 -9 ------- Run | Scr Mat Mat Traps Triggered 2 | . 2 . Indirectly . | . . . Trap Hack Attempts . | . . . Triggered . | . . . Disarmed . | . . . Reprogrammed . | . . . Reused . | . . . Traps Extracted . | . . . Installed . | . . . Triggered . | . . . Machines | -11 -10 -9 ---------- Run | Scr Mat Mat Machines Disabled . | . . . Max in Single Turn . | . . . Machines Sabotaged . | . . . Garrisons Compromised . | . . . Overloaded Fab Kills . | . . . Fab Network Shutdowns . | . . . Hacking | -11 -10 -9 --------- Run | Scr Mat Mat Machines Accessed 11 | . 5 6 Terminals 7 | . 3 4 Fabricators . | . . . Repair Stations 1 | . . 1 Recycling Units 2 | . 2 . Scanalyzers 1 | . . 1 Garrison Access . | . . . Total Hacks 49 | . 21 28 Successful 37 | . 14 23 Failed 12 | . 7 5 Catastrophic . | . . . Database Lockouts . | . . . Manual . | . . . Terminals 36 | . 15 21 Fabricators . | . . . Repair Stations 4 | . . 4 Recycling Units 6 | . 6 . Scanalyzers 3 | . . 3 Garrison Access . | . . . Terminal Hacks 26 | . 9 17 Record 2 | . . 2 Prototype ID Bank 4 | . 2 2 Branch Access Points 1 | . . 1 Emergency Access Points 1 | . . 1 Terminal Index 1 | . . 1 Recycling Unit Index 1 | . . 1 Alert Level 4 | . 2 2 Dispatch Records 3 | . 2 1 Security Status 1 | . . 1 Investigation Status 3 | . 2 1 Recall Investigation 1 | . . 1 Hauler Manifests 4 | . 1 3 Fabricator Hacks . | . . . Repair Station Hacks 4 | . . 4 Scan Component 2 | . . 2 Repair 2 | . . 2 Recycling Unit Hacks 5 | . 5 . Recycle Component 3 | . 3 . Process 1 | . 1 . Report Inventory 1 | . 1 . Scanalyzer 2 | . . 2 Insert Component 1 | . . 1 Analyze 1 | . . 1 Garrison Access Hacks . | . . . Unauthorized Hacks . | . . . Terminals . | . . . Fabricators . | . . . Repair Stations . | . . . Recycling Units . | . . . Scanalyzers . | . . . Garrison Access . | . . . Data Cores Recovered . | . . . Used . | . . . Hacking Detections 11 | . 5 6 Full Trace Events 9 | . 5 4 Feedback Events . | . . . Feedback Blocked . | . . . Robot Schematics Acquired . | . . . Robots Built . | . . . Matter . | . . . Time . | . . . Total Robot Build Rating . | . . . Part Schematics Acquired 1 | . . 1 Parts Built . | . . . Matter . | . . . Time . | . . . Total Part Build Rating . | . . . Parts Repaired 2 | . . 2 Time 52 | . . 52 Parts Recycled 3 | . 3 . Recycled Matter 119 | . 119 . Retrieved Matter . | . . . Retrieved Components . | . . . Parts Scanalyzed 1 | . . 1 Part Schematics Acquired 1 | . . 1 Parts Damaged . | . . . Bothacking | -11 -10 -9 ------------ Run | Scr Mat Mat Used RIF Installer . | . . . Robots Hacked . | . . . Non-combat . | . . . Combat . | . . . Robot Hacks Applied . | . . . Relay Couplers Released . | . . . Robots Rewired . | . . . Allies Hacked . | . . . Hacks Repelled . | . . . Allies | -11 -10 -9 -------- Run | Scr Mat Mat Total Allies . | . . . Largest Group . | . . . Highest-Rated Group . | . . . Highest-Rated Ally . | . . . Total Orders . | . . . Ally Attacks . | . . . Total Damage . | . . . Kills . | . . . Allies Corrupted . | . . . Allies Melted . | . . . Intel | -11 -10 -9 ------- Run | Scr Mat Mat Robot Analysis Total . | . . . Derelict Logs Recovered . | . . . Drone Launches . | . . . Drone Recoveries . | . . . Exploration | -11 -10 -9 ------------- Run | Scr Mat Mat Turns Passed 1667 | 110 871 686 Spaces Moved 794 | 73 383 338 Core 50 | 14 20 16 Treads . | . . . Legs 744 | 59 363 322 Wheels . | . . . Hover . | . . . Flight . | . . . Fastest Speed 50 | 50 120 50 Average Speed 144 | 106 150 146 Slowest Speed 450 | 120 450 250 Overloaded Moves . | . . . Propulsion Burnouts . | . . . Robots Hopped . | . . . Cave-ins Triggered . | . . . Exploration Rate (%) 31 | 5 59 31 Regions Visited 2 Branch Regions . Pre-discovered Areas . | . . . Known Exits Taken . | . . . Unknown Exits Taken 2 | 1 1 . Scrap Searched . | . . . Spaces Dug . | . . . Terrain Destroyed 15 | . . 15 Melee . | . . . Projectile . | . . . AOE 15 | . . 15 Terrain Rammed . | . . . Walls Destroyed . | . . . Machines Disabled . | . . . Actions | -11 -10 -9 --------- Run | Scr Mat Mat Total 1079 | 92 552 435 Wait 30 | . 24 6 Move 792 | 72 382 338 Hop . | . . . Pick Up 46 | 5 27 14 Fast Attach 7 | 4 1 2 Attach 17 | 2 6 9 Detach . | . . . Swap 23 | . 16 7 Drop 21 | . 14 7 Fire 115 | 6 66 43 Melee 25 | . 16 9 Ram . | . . . Kick 3 | 3 . . Crush . | . . . Escape Stasis . | . . . Rewire . | . . . Trap . | . . . Miscellaneous . | . . . Route ------- -11/Scrapyard -10/Materials -9/Materials (discovered 2 exits: *Min x2) History --------- Turn | Location | Event 9 | -11/Scrapyard | Discovered new exit (range 16) 111 | -11/Scrapyard | Entered Materials 323 | -10/Materials | Build established: Mutant 624 | -10/Materials | Core integrity fell below 50% 656 | -10/Materials | Core integrity fell below 20% 670 | -10/Materials | Lost 4 parts (1p2n1w) 902 | -10/Materials | Discovered new exit (range 15) 982 | -10/Materials | Entered another Materials area 982 | -9/Materials | Evolved 2 slots: Power x1, Weapon x1 1033 | -9/Materials | Build established: Scavenger-Mutant 1079 | -9/Materials | Identified exit to Mines 1185 | -9/Materials | Repaired Lrg. Storage Unit 1211 | -9/Materials | Repaired Aluminum Leg? 1531 | -9/Materials | Lost 3 parts (2p1n) 1610 | -9/Materials | Core integrity fell below 50% 1657 | -9/Materials | Core integrity fell below 20% 1668 | -9/Materials | Destroyed by Y-45 Defender with Beam Rifle Last Messages --------------- 01637_ K-01 Serf collects debris. 01638_ Particle Gun destroyed. 01640_ K-01 Serf collects debris. 01640_ U-05 Engineer lays Concrete. 01643_ K-01 Serf collects debris. 01643_ G-34 Mercenary destroyed. 01644_ Hacking Suite destroyed. 01644_ U-05 Engineer lays Concrete. 01646_ K-01 Serf collects debris. 01646_ U-05 Engineer lays Concrete. 01646_ K-01 Serf collects debris. 01647_ U-05 Engineer lays Concrete. 01649_ K-01 Serf collects debris. 01650_ U-05 Engineer lays Concrete. 01650_ K-01 Serf collects debris. 01651_ U-05 Engineer lays Concrete. 01656_ K-01 Serf collects debris. 01657_ U-05 Engineer lays Concrete. 01660_ K-01 Serf collects debris. 01662_ U-05 Engineer lays Concrete. Map ----- +----------------------------------------------------+ | | | | | | | ????????????????????????????????????????????????? | | ????????????????????????????????????????????????? | | ????????????????????????????????????????????????? | | ????????????????????????????????????????????????? | | ????????????????????????????????????????????????? | | ????????????????????????????????????????????????? | | ????????????????????????????????????????????????? | | ????????????????????????????????????????????????? | | ????????????????????????????????????????????????? | | ????????????????????????????????????????????????? | | ????????????"""?????????????????????????????????? | | ??????????#"|||"????????????????????????????????? | | ??????????"" "????????????????????????????????? | | ?????????? ????????????????????????????????? | | ?????????? > ????????????????????????????????? | | ??????????? ????????????####????????????????? | | ?????????# ???????????!!!!##???????????????? | | ??????????# ??????????? !#???????????????? | | ???????????# #???#######! !#?????###???????? | | ???????????# ##### # ### #???????? | | ???????????+ u [ Y #???????? | | ???????????# % +???????? | | ???????????# *! @t #???????? | | ???????????# ##### =%% ########## ????????? | | ???????????# #??####g#####????????????????????? | | ???????????# #### #????????????????????? | | ???????????# + #????????????????????? | | ???????????# #### """ #????????????????????? | | ???????????# #??# """"" #????????????????????? | | ???????????# #??# """"" #????????????????????? | | ???????????# #??# """"" #????????????????????? | | ???????????# #??#! """ #????????????????????? | | ??????????## ##?# #?????????? ?????????? | | ??????????# #?# / ????????????? ?????????? | | ?########## #?########???????????? #????????? | | ?# """" # #????????????????????? #????????? | | ?# ""S"" # #????????????????????? ####?????? | | ?# "" "" # #????????????????????? +?????? | | ?# ### ###????????????????????? #?????? | | ?# #?# #??????????????????????# #?????? | | ?# """ #?# #?????????########?????# +?????? | | ?# """ #?# #?????????# #?????# #?????? | | ?# """ #?# #?????????# ""#??#### #?????? | | ?# ### ########### T"#??# #?????? | | ?#####+#+## # ## | ""#??# #?????? | | ?????# % [ # T ## #### #?????? | | ?????# + ! ## / #?????? | +----------------------------------------------------+ Best States ------------- Heat Dissipation 28 Energy Generation 17 Energy Capacity 415 Matter Stores 500 Matter Capacity 500 Sight Range 18 Terrain Scan Density 10 Evasion (%) 50 Offensive Hacking 10 Item Schematics ----------------- Hrd. Light Armor Plating | -9/Materials | Scanalyzed Robot Schematics ------------------ None Fabricated ------------ Nothing Alien Tech Used ----------------- None Achievements -------------- None Challenges ------------ None Game ------ Seed TrackerResetRecalibrator Manual? 0 Play Time 00:50:49 Cumulative 29.3 hours Start 2022.02.06 @ 22:25:03 End 2022.02.06 @ 23:18:53 Sessions 1 Manual Loads 0 Difficulty Rogue Special Mode None Game No. 41 Rogue 41 Adventurer 0 Explorer 0 Win Type - Total 0 Types 0/0/0/0/0/0/0/0/0 Lore% 5 Gallery% 21 Achievement% 16 Wizard Run 0 Options --------- ASCII 0 Keyboard 0 Movement Mouse Keybinds 0 Fullscreen 1 Font 18/SmallcapsGlow Map View 76x50 Tactical HUD 1 Map Filters NONE Filters NONE Steam 1 RUN: 3d340799-58c7-4998-93e5-2de95d2316be